bitfinex-derivatives/quotes_ETHF0:USTF0_20251229
["timestamp","ask_amount","ask_price","bid_price","bid_amount"]
[1767006002839,0.17381655,2966.2,2964.9,4.8002652]
[1767006003647,0.00505655,2966.2,2964.9,4.8002652]
[1767006003941,0.00505655,2966.2,2965.0,4.796]
[1767006004543,0.00505655,2966.2,2965.1,4.795]
[1767006004745,0.00505655,2966.2,2964.9,0.0042652]
[1767006004949,0.16878,2965.9,2964.9,0.0042652]
[1767006005247,0.16879,2965.8,2964.3,0.987]
[1767006006147,0.16879,2965.7,2964.3,0.987]
[1767006006346,0.16879,2965.7,2964.3,0.98941132]
[1767006008550,0.16881,2965.4,2964.3,0.00241132]
[1767006009046,0.16883,2965.0,2964.0,0.10934523]
[1767006009248,0.16883,2965.0,2963.4,4.795]
[1767006009453,0.00505655,2964.5,2963.4,4.795]
[1767006009842,0.00505655,2964.5,2963.4,4.79807751]
[1767006013955,0.00505655,2964.5,2963.4,0.00307751]
[1767006019660,0.16883,2965.0,2963.7,0.00505655]
[1767006020555,0.16883,2965.0,2963.4,0.00307751]
[1767006020556,0.16884,2964.8,2963.4,0.00307751]
[1767006021553,0.00505655,2964.4,2963.4,0.00307751]
[1767006023555,0.17391655,2964.4,2963.4,0.00307751]
[1767006023953,0.16888,2964.1,2962.9,4.794]
[1767006024956,0.16888,2964.1,2962.9,4.79791893]
[1767006026551,0.16889,2964.0,2962.9,0.00391893]
[1767006026747,0.16889,2963.9,2962.9,0.00391893]
[1767006027854,0.00505655,2964.4,2962.9,0.00391893]
[1767006028064,0.17391655,2964.4,2962.9,0.00391893]
[1767006028360,0.16887,2964.3,2962.9,0.00391893]
[1767006028558,0.16887,2964.2,2962.9,0.00391893]
[1767006028764,0.00505655,2964.4,2962.9,0.00391893]
[1767006029061,0.16889,2964.0,2962.9,0.00391893]
[1767006031049,0.00505655,2964.4,2962.9,0.00391893]
[1767006031254,0.16882,2965.2,2963.1,1.88851673]
[1767006031762,0.16882,2965.2,2963.2,4.35011274]
[1767006032363,0.16882,2965.2,2963.9,0.00505655]
[1767006032557,0.16882,2965.2,2964.0,4.793]
[1767006033365,0.16879,2965.6,2964.0,4.793]
[1767006033961,0.16879,2965.6,2964.1,4.792]
[1767006034159,0.00323249,2965.8,2964.1,4.792]
[1767006034360,0.00323249,2965.8,2964.2,4.33665757]
[1767006034858,0.00323249,2965.8,2964.3,4.793]
[1767006036471,0.00505655,2965.3,2964.3,4.793]
[1767006036968,0.00505655,2965.3,2964.1,1.88846673]
[1767006037269,0.00505655,2965.3,2964.2,4.793]
[1767006040662,0.00323249,2965.8,2964.2,4.793]
[1767006041857,0.00337102,2965.3,2964.2,4.793]
[1767006042062,0.00323249,2965.8,2964.2,4.793]
[1767006042263,0.00323249,2965.8,2964.6,1.71958673]
[1767006042466,0.16873,2966.7,2964.6,1.88843673]
[1767006042668,0.61868044,2967.3,2964.6,1.88843673]
[1767006042870,0.16874,2966.5,2964.7,4.527]
[1767006043064,0.16874,2966.5,2965.3,0.00505655]
[1767006043567,0.17197337,2966.5,2965.3,0.00929979]
[1767006048175,0.16876,2966.2,2965.3,0.00929979]
[1767006048369,0.00323337,2966.5,2963.9,0.16889]
[1767006048568,0.16877,2966.0,2964.0,2.332]
[1767006048769,0.16877,2966.0,2964.2,4.37398163]
[1767006048980,0.16877,2966.0,2964.1,1.71958673]
[1767006049175,0.16877,2966.0,2964.2,4.37398163]
[1767006049371,0.00505655,2965.4,2964.8,0.00505655]
[1767006050982,0.00505655,2965.4,2964.9,4.79]
[1767006051782,0.00505655,2965.4,2964.8,0.00505655]
[1767006053473,0.00505655,2965.4,2964.2,0.00335494]
[1767006053679,0.00505655,2965.4,2964.3,4.79]
[1767006053875,0.00505655,2965.4,2964.2,4.79335494]
[1767006054584,0.00505655,2965.4,2964.5,0.00505655]
[1767006055486,0.17386655,2965.4,2964.5,0.00505655]
[1767006057282,0.00505655,2965.4,2964.5,0.00505655]
[1767006059480,0.00505655,2965.4,2964.6,4.789]
[1767006060683,0.16878,2965.9,2964.6,4.789]
[1767006061581,0.16878,2965.9,2964.5,0.00505655]
[1767006061785,0.00505655,2965.5,2964.6,4.04]
[1767006061975,0.00505655,2965.5,2964.5,0.00505655]
[1767006062181,0.16881,2965.3,2964.5,0.00505655]
[1767006062580,0.00505655,2965.5,2964.5,0.00505655]
[1767006063379,0.16878,2965.9,2964.5,0.00505655]
[1767006063588,0.00323337,2966.5,2964.6,4.38955005]
[1767006063785,0.00323337,2966.5,2964.8,1.71958673]
[1767006063979,0.00323337,2966.5,2964.9,0.16883]
[1767006064183,0.00323337,2966.5,2965.3,1.71958673]
[1767006064390,0.00323337,2966.5,2965.4,4.788]
[1767006066395,0.00323337,2966.5,2965.0,0.16882]
[1767006066694,0.00323337,2966.5,2965.1,9.10862977]
[1767006067798,0.00323337,2966.5,2965.1,4.31962977]
[1767006067992,0.00323337,2966.5,2965.2,4.791]
[1767006068600,0.00323337,2966.5,2965.3,6.07035697]
[1767006069488,0.70344523,2967.6,2965.3,6.07035697]
[1767006069689,0.70344523,2967.6,2966.2,0.00505655]
[1767006069889,0.70344523,2967.6,2966.3,4.793]
[1767006070091,0.87212523,2967.6,2966.3,4.793]
[1767006070599,0.87636507,2967.6,2966.3,4.7954903]
[1767006071297,0.16869,2967.5,2966.3,4.7954903]
[1767006072001,0.16869,2967.4,2966.3,4.7954903]
[1767006072499,0.16869,2967.4,2966.3,0.0024903]
[1767006072692,0.16869,2967.4,2966.3,4.7944903]
[1767006077201,0.70768507,2967.6,2966.3,4.7944903]
[1767006085008,0.70768507,2967.6,2964.0,6.02479342]
[1767006085302,0.16873,2966.7,2965.2,3.429]
[1767006085499,0.16873,2966.7,2965.3,3.429]
[1767006085707,40.8,2967.4,2965.3,3.429]
[1767006085900,0.9225682,2967.3,2965.3,3.429]
[1767006086110,0.16876,2966.3,2965.3,0.00365619]
[1767006086802,0.00505655,2966.6,2965.3,0.00365619]
[1767006086803,0.16876,2966.2,2965.3,0.00365619]
[1767006087500,0.16877,2966.1,2965.3,0.00365619]
[1767006088299,0.00505655,2966.6,2964.8,4.788]
[1767006089005,1.72464328,2966.6,2964.8,4.788]
[1767006089206,1.72464328,2966.6,2965.4,6.55e-06]
[1767006089506,0.16879,2965.7,2964.8,0.00387794]
[1767006090305,40.8,2966.5,2964.8,4.49e-06]
[1767006090496,0.16881,2965.4,2963.1,0.26575218]
[1767006090695,0.16881,2965.4,2963.2,4.787]
[1767006090896,0.16881,2965.4,2963.2,9.17006063]
[1767006091504,0.00505655,2964.6,2964.0,0.00337102]
[1767006093608,0.16883,2964.9,2964.0,0.00337102]
[1767006094799,0.00505655,2964.7,2964.0,0.00337102]
[1767006097511,0.16883,2964.9,2964.0,0.00337102]
[1767006098618,0.00505655,2964.7,2964.0,0.00337102]
[1767006098808,0.16883,2964.9,2964.0,0.00337102]
[1767006099013,0.00256552,2965.4,2964.0,0.00337102]
[1767006099211,0.17137552,2965.4,2964.0,0.00337102]
[1767006101015,0.00505655,2965.0,2964.0,0.00337102]
[1767006102712,0.17388655,2965.0,2964.0,0.00337102]
[1767006102913,0.00505655,2965.0,2964.0,0.00337102]
[1767006104411,0.16884,2964.9,2964.0,0.00337102]
[1767006106018,0.16884,2964.9,2963.2,4.79028652]
[1767006107020,0.16884,2964.9,2963.8,0.00505655]
[1767006110922,0.16884,2964.8,2963.8,0.00505655]
[1767006115520,0.16885,2964.7,2963.8,0.00505655]
[1767006115725,0.00505655,2965.0,2963.8,0.00505655]
[1767006116523,0.17388655,2965.0,2963.8,0.00505655]
[1767006116823,0.16883,2964.9,2963.8,0.00505655]
[1767006117520,0.00505655,2965.0,2963.8,0.00505655]
[1767006117717,0.16886,2964.6,2963.8,0.00505655]
[1767006121519,0.00505655,2965.0,2963.8,0.00505655]
[1767006122119,0.00256552,2965.4,2963.8,0.00505655]
[1767006122632,0.17137552,2965.4,2963.8,0.00505655]
[1767006123121,0.00505655,2964.9,2963.8,0.00505655]
[1767006124418,0.17137552,2965.4,2963.9,4.30995411]
[1767006124817,0.00256552,2965.4,2963.9,4.30995411]
[1767006125023,0.16877,2966.0,2963.9,4.30995411]
[1767006125024,0.16877,2966.0,2964.0,0.16888]
[1767006125528,0.16877,2966.0,2964.1,4.42132077]
[1767006125931,0.16878,2965.8,2964.1,4.42132077]
[1767006126123,0.16878,2965.8,2964.0,0.16888]
[1767006129426,0.16878,2965.8,2964.1,4.44824744]
[1767006130332,0.16878,2965.8,2963.8,0.00505655]
[1767006130835,0.16878,2965.8,2963.9,4.28607555]
[1767006132436,0.16879,2965.7,2963.9,4.28607555]
[1767006134132,0.1688,2965.5,2963.9,4.28607555]
[1767006134335,0.1688,2965.5,2963.8,0.00505655]
[1767006134538,0.16881,2965.4,2963.8,0.00505655]
[1767006134937,0.16881,2965.3,2963.8,0.00505655]
[1767006135638,6.21010033,2966.0,2963.8,0.00505655]
[1767006135934,0.92702564,2965.9,2963.8,0.00505655]
[1767006136134,6.21010033,2966.0,2963.8,0.00505655]
[1767006136135,0.16885,2964.6,2963.8,0.00505655]
[1767006136337,0.16886,2964.5,2963.2,0.99784435]
[1767006137241,0.16886,2964.4,2963.2,0.99784435]
[1767006137539,0.16886,2964.4,2963.6,0.00505655]
[1767006137540,0.00505655,2964.1,2963.6,0.00505655]
[1767006138135,0.00505655,2964.1,2963.2,0.99784435]
[1767006138437,0.16889,2964.0,2963.2,0.99784435]
[1767006139237,0.16889,2964.0,2963.3,0.00505655]
[1767006139640,0.649,2963.9,2961.5,0.0008]
[1767006139841,0.16904,2961.3,2958.8,0.16918]
[1767006140142,0.16904,2961.3,2958.3,1.497]
[1767006140143,0.16908,2960.6,2959.3,0.71586617]
[1767006140439,0.16909,2960.4,2959.3,0.71586617]
[1767006140738,0.00506705,2960.1,2959.6,0.00506705]
[1767006140933,0.1734311,2961.3,2959.7,7.22661291]
[1767006141135,0.1734311,2961.3,2959.6,0.00506705]
[1767006141542,40.9734311,2961.3,2959.6,0.00506705]
[1767006142035,0.00506705,2960.7,2959.6,7.23167996]
[1767006142238,0.0043911,2961.3,2959.7,4.34944887]
[1767006142438,0.0043911,2961.3,2959.8,4.781]
[1767006142834,0.0043911,2961.3,2959.9,4.34944887]
[1767006143241,0.00506705,2960.9,2959.9,4.34944887]
[1767006143545,40.96899,2962.3,2959.9,4.34944887]
[1767006144442,0.00374522,2962.3,2960.1,0.16911]
[1767006144843,0.00374522,2962.3,2960.2,4.36200378]
[1767006146440,0.00374522,2962.3,2960.2,4.53110378]
[1767006146746,0.00374522,2962.3,2960.3,0.1691]
[1767006147042,0.00374522,2962.3,2960.3,4.45792734]
[1767006147248,0.00374522,2962.3,2960.3,0.1691]
[1767006147645,0.00374522,2962.3,2960.4,4.28882734]
[1767006147842,0.00374522,2962.3,2960.4,4.45791734]
[1767006148045,0.00374522,2962.3,2960.4,8.23124783]
[1767006148247,0.00374522,2962.3,2960.4,3.94242049]
[1767006148551,0.00374522,2962.3,2960.5,4.29667909]
[1767006148746,0.00374522,2962.3,2961.1,0.00506705]
[1767006149048,0.00374522,2962.3,2961.2,4.787]
[1767006153851,0.00374522,2962.3,2961.1,0.00406705]
[1767006154047,0.16901,2961.9,2961.1,0.00406705]
[1767006154253,0.00374522,2962.3,2961.1,0.00406705]
[1767006154950,0.00100351,2962.0,2961.1,0.00406705]
[1767006155339,0.00100351,2962.0,2961.2,7.22661291]
[1767006156548,0.00100351,2962.0,2961.1,0.00406705]
[1767006156750,0.00100351,2962.0,2961.1,7.23067996]
[1767006157847,0.3376,2961.9,2961.1,7.23067996]
[1767006160659,0.3376,2961.9,2961.3,7.22661291]
[1767006161048,0.00374522,2962.3,2961.3,7.22661291]
[1767006162354,0.16893,2963.3,2961.8,1.72124631]
[1767006162550,0.16889,2964.0,2961.9,4.804]
[1767006162750,0.16889,2964.0,2962.7,0.00506705]
[1767006163053,0.16886,2964.5,2962.7,4.80906705]
[1767006163358,0.17220977,2964.5,2962.7,4.81317403]
[1767006163857,0.17220977,2964.5,2962.8,4.804]
[1767006164156,0.1689,2963.7,2961.7,4.804]
[1767006165060,0.00506705,2963.0,2962.4,0.00506705]
[1767006167259,0.00506705,2963.0,2962.4,7.23167996]
[1767006167560,0.00506705,2963.0,2962.4,0.00506705]
[1767006167756,0.00506705,2963.0,2962.4,7.23167996]
[1767006168956,0.00506705,2963.0,2962.4,12.03667996]
[1767006171759,0.00506705,2963.0,2962.4,7.23167996]
[1767006172066,0.00506705,2963.0,2962.4,12.04467996]
[1767006173467,0.00506705,2963.0,2962.1,4.816]
[1767006173656,0.00506705,2963.0,2961.7,0.00335153]
[1767006173657,0.96462318,2962.9,2961.7,0.00335153]
[1767006173857,0.96462318,2962.8,2961.8,4.816]
[1767006174060,0.00506705,2963.0,2961.8,4.816]
[1767006174368,0.96462134,2962.9,2962.1,0.00506705]
[1767006174554,0.96462134,2962.8,2961.7,0.00335153]
[1767006174765,0.96462134,2962.7,2961.7,0.00335153]
[1767006175066,0.96462134,2962.6,2961.7,0.00335153]
[1767006175266,0.96462134,2962.5,2961.7,0.00335153]
[1767006175567,0.00506705,2963.0,2961.7,0.00335153]
[1767006175768,0.96485581,2962.9,2961.8,0.00506705]
[1767006176067,0.96485581,2962.8,2961.8,6.93104701]
[1767006176363,0.96485581,2962.7,2961.8,6.93104701]
[1767006176665,0.00506705,2963.0,2961.8,6.93104701]
[1767006176859,0.96502684,2962.9,2961.8,6.93104701]
[1767006177064,0.00506705,2963.0,2961.8,6.93104701]
[1767006177065,0.96502684,2962.8,2961.8,6.93104701]
[1767006177269,0.96502684,2962.7,2961.9,4.817]
[1767006177464,0.00506705,2963.0,2961.9,4.817]
[1767006177665,0.96504065,2962.9,2961.9,4.817]
[1767006177966,0.96504065,2962.8,2961.8,6.93104701]
[1767006178167,0.96504065,2962.7,2961.8,11.75004701]
[1767006178371,0.00506705,2963.0,2961.8,11.75004701]
[1767006178569,0.96504595,2962.9,2961.8,11.75004701]
[1767006178758,0.96504595,2962.8,2961.8,11.75004701]
[1767006178958,0.00506705,2963.0,2961.8,11.75004701]
[1767006179169,0.96505212,2962.9,2961.8,11.75004701]
[1767006179354,0.96505212,2962.8,2961.8,11.75004701]
[1767006179559,0.00506705,2963.0,2961.8,11.75004701]
[1767006179759,0.96506587,2962.9,2961.8,11.75004701]
[1767006179964,0.96506587,2962.8,2961.8,11.75004701]
[1767006180165,0.00506705,2963.0,2961.8,11.75004701]
[1767006181059,0.00506705,2963.0,2961.9,4.826]
[1767006184068,0.2197,2963.1,2961.9,4.826]
[1767006184272,1.19020291,2964.0,2961.9,4.826]
[1767006184467,1.79637656,2964.2,2961.9,4.826]
[1767006184468,1.19020291,2964.2,2961.9,6.54724631]
[1767006184672,1.19020291,2964.4,2962.0,4.46159926]
[1767006185172,0.00506705,2963.5,2962.0,4.46159926]
[1767006185867,40.8,2964.4,2962.0,4.46159926]
[1767006186667,0.00506705,2963.5,2962.0,4.46159926]
[1767006186874,0.00334977,2964.5,2962.0,4.46159926]
[1767006187075,40.80334977,2964.5,2962.0,4.46159926]
[1767006187460,0.00334977,2964.5,2962.0,4.46159926]
[1767006187667,0.1179,2964.4,2962.0,4.46159926]
[1767006190674,0.1179,2964.4,2963.0,6.92597996]
[1767006190871,0.1179,2964.4,2963.4,0.00506705]
[1767006191478,0.1179,2964.4,2963.5,4.834]
[1767006191782,0.1179,2964.4,2963.4,4.83906705]
[1767006192775,0.1179,2964.4,2963.4,0.00506705]
[1767006195567,0.1179,2964.4,2961.9,1.72124631]
[1767006195765,0.1179,2964.4,2962.4,6.92597996]
[1767006196573,0.00506705,2963.7,2963.1,0.00506705]
[1767006196878,0.00506705,2963.7,2962.5,4.832]
[1767006197079,0.00506705,2963.7,2962.9,6.92597996]
[1767006197777,0.00506705,2963.7,2963.0,0.00506705]
[1767006198675,0.00506705,2963.7,2962.9,6.92597996]
[1767006199571,0.1179,2964.4,2962.9,6.92597996]
[1767006200476,0.00506705,2963.9,2963.4,0.00506705]
[1767006201079,0.1179,2964.4,2963.4,0.00506705]
[1767006202181,0.00506705,2964.2,2963.4,0.00506705]
[1767006207687,0.1179,2964.1,2963.4,0.00506705]
[1767006211189,0.1179,2964.1,2963.2,4.845]
[1767006212088,0.1179,2964.1,2963.2,4.846]
[1767006213294,0.1179,2964.1,2963.4,0.00506705]
[1767006214294,0.1179,2964.1,2963.4,4.85306705]
[1767006214591,0.00506705,2964.2,2963.4,4.85306705]
[1767006214799,0.00506705,2964.2,2963.4,0.00506705]
[1767006214999,0.00506705,2964.2,2963.5,4.848]
[1767006215194,0.00506705,2964.2,2963.4,0.00506705]
[1767006215401,0.00506705,2964.2,2963.6,4.849]
[1767006215589,0.00506705,2964.2,2963.4,0.00506705]
[1767006215795,0.00506705,2964.2,2963.5,4.849]
[1767006217400,0.00334977,2964.5,2963.5,4.849]
[1767006218604,0.00506705,2964.3,2963.5,4.849]
[1767006218803,1.19020291,2965.8,2963.5,4.849]
[1767006219099,0.95680852,2965.7,2964.1,6.92597996]
[1767006219301,40.8,2966.0,2964.2,4.852]
[1767006219495,0.95591193,2965.9,2964.2,4.852]
[1767006219704,0.00506705,2965.3,2964.8,0.00506705]
[1767006220092,0.00424513,2965.9,2964.8,0.00506705]
[1767006220511,0.00424513,2965.9,2964.8,4.85706705]
[1767006220805,7.52120291,2967.0,2965.6,6.92597996]
[1767006221000,2.64398169,2966.9,2964.8,0.00506705]
[1767006221202,1.45377878,2966.8,2964.8,0.00506705]
[1767006221394,41.75558286,2966.7,2964.9,1.936]
[1767006221596,0.95558286,2966.6,2964.9,1.936]
[1767006221796,0.95558286,2966.5,2965.0,5.90257996]
[1767006222006,0.95558286,2966.4,2965.0,5.90257996]
[1767006222209,0.00400853,2966.6,2965.0,5.90257996]
[1767006222401,0.95390402,2966.5,2965.0,5.90257996]
[1767006222705,0.00400853,2966.6,2965.0,5.90257996]
[1767006222902,0.95390752,2966.5,2965.0,5.90257996]
[1767006223104,0.00400853,2966.6,2965.0,5.90257996]
[1767006223704,0.16878,2965.8,2965.0,5.90257996]
[1767006226406,0.16879,2965.7,2965.0,5.90257996]
[1767006226606,0.1688,2965.5,2964.8,0.00506705]
[1767006229913,0.16881,2965.4,2964.8,0.00506705]
[1767006230115,0.16881,2965.4,2964.8,8e-08]
[1767006230505,0.16882,2965.1,2964.8,8e-08]
[1767006231220,0.16886,2964.4,2963.0,4.855]
[1767006231725,40.8,2965.3,2963.0,4.855]
[1767006231913,0.94996402,2965.2,2963.0,4.855]
[1767006232219,0.16887,2964.3,2963.8,8.33e-06]
[1767006232417,0.16887,2964.2,2963.8,8.33e-06]
[1767006233311,0.16888,2964.1,2963.8,8.33e-06]
[1767006233515,0.16888,2964.1,2963.0,0.00430536]
[1767006233711,0.00503801,2964.4,2963.0,0.00430536]
[1767006233922,0.16891,2963.5,2963.0,5.36e-06]
[1767006234412,0.16891,2963.5,2963.0,0.00506369]
[1767006234620,0.00503801,2964.4,2963.0,3.69e-06]
[1767006235313,0.16891,2963.6,2963.0,3.69e-06]
[1767006235620,0.16891,2963.6,2963.0,0.00438173]
[1767006236021,0.16892,2963.5,2963.0,1.73e-06]
[1767006236320,0.00503801,2964.4,2963.0,1.73e-06]
[1767006236820,0.16891,2963.6,2963.0,1.73e-06]
[1767006237020,0.16891,2963.6,2963.0,0.00506006]
[1767006239724,0.00503801,2964.4,2963.0,0.00506006]
[1767006240530,0.16888,2964.1,2963.0,0.00506006]
[1767006243422,0.16888,2964.1,2963.0,1.59706006]
[1767006245127,0.00503801,2964.4,2963.0,1.59706006]
[1767006246430,0.16888,2964.1,2963.0,1.59706006]
[1767006246726,0.00503801,2964.4,2963.0,1.59706006]
[1767006247921,0.3373,2964.3,2963.0,1.59706006]
[1767006252421,0.00503801,2964.4,2963.0,1.59706006]
[1767006254828,0.16888,2964.2,2963.0,0.00506006]
[1767006255131,0.16888,2964.2,2963.0,4.85706006]
[1767006257225,0.00503801,2964.4,2963.0,4.85706006]
[1767006258531,0.16888,2964.2,2963.0,4.85706006]
[1767006260029,0.1689,2963.7,2963.0,0.00506006]
[1767006260226,0.16891,2963.6,2963.0,0.00506006]
[1767006261533,0.16891,2963.5,2963.0,0.00506006]
[1767006263335,0.16891,2963.5,2961.6,0.16902]
[1767006263547,0.16894,2963.1,2961.3,0.97824015]
[1767006263742,0.16894,2963.1,2961.4,1.544]
[1767006264536,0.00505833,2962.5,2962.0,0.00505833]
[1767006265138,0.00505833,2962.5,2961.4,1.54806247]
[1767006266031,0.00505833,2962.5,2961.7,0.00505833]
[1767006269949,0.16898,2962.4,2961.7,0.00505833]
[1767006273345,0.00505833,2962.5,2961.7,0.00505833]
[1767006273847,0.17402833,2962.5,2961.7,0.00505833]
[1767006274050,0.16899,2962.3,2961.4,0.00406247]
[1767006275049,0.16899,2962.3,2961.6,0.0033926]
[1767006277548,0.16899,2962.2,2961.6,0.0033926]
[1767006277949,0.16899,2962.2,2961.4,0.00406247]
[1767006283350,0.3375,2962.1,2961.4,0.00406247]
[1767006289359,0.3375,2962.1,2961.4,2.47e-06]
[1767006290557,0.16902,2961.7,2961.4,2.47e-06]
[1767006292552,0.3375,2962.1,2961.4,2.47e-06]
[1767006293459,0.16901,2961.9,2961.4,2.47e-06]
[1767006298769,0.17402833,2962.5,2961.4,2.47e-06]
[1767006300254,0.16898,2962.4,2961.4,2.47e-06]
[1767006301458,0.16898,2962.3,2961.4,2.47e-06]
[1767006302165,0.3375,2962.2,2961.4,2.47e-06]
[1767006304564,1.1955363,2961.9,2960.5,1.1955363]
[1767006305371,0.16902,2961.6,2960.5,1.1955363]
[1767006305572,0.16902,2961.6,2960.5,1.19855453]
[1767006305868,1.3645563,2961.6,2960.5,0.00301823]
[1767006306565,0.16902,2961.6,2960.5,0.00301823]
[1767006306872,0.16904,2961.4,2960.5,1.823e-05]
[1767006311365,40.8,2962.1,2960.5,1.823e-05]
[1767006311366,0.16905,2961.2,2960.5,1.823e-05]
[1767006311562,1.72267704,2961.4,2959.3,0.71321714]
[1767006311761,0.00506714,2960.6,2959.3,0.71321714]
[1767006312569,0.00937941,2960.6,2959.3,0.71712849]
[1767006312969,0.00937941,2960.6,2958.3,0.99779092]
[1767006312970,0.00937941,2960.6,2957.4,4.18410056]
[1767006313275,0.00937941,2960.6,2958.3,1.72267704]
[1767006313276,0.16911,2960.0,2958.3,1.72267704]
[1767006313769,0.00937941,2960.6,2958.4,4.38364624]
[1767006313976,0.00937941,2960.6,2958.4,4.64695867]
[1767006314174,0.00937941,2960.6,2958.5,3.63157823]
[1767006314365,0.00937941,2960.6,2958.8,0.16918]
[1767006314568,0.00937941,2960.6,2959.0,1.89184704]
[1767006314964,0.00937941,2960.6,2959.2,0.16916]
[1767006315370,0.00937941,2960.6,2959.3,4.2945599]
[1767006315965,0.00937941,2960.6,2959.4,4.841]
[1767006316167,0.00937941,2960.6,2959.5,4.841]
[1767006316370,0.00937941,2960.6,2958.8,0.16918]
[1767006316569,0.00937941,2960.6,2958.9,4.841]
[1767006316771,0.00937941,2960.6,2958.9,9.2001111]
[1767006319080,0.16902,2961.7,2959.5,1.72267704]
[1767006319277,0.16903,2961.5,2959.4,0.16915]
[1767006319476,0.16903,2961.5,2959.6,8.75200533]
[1767006319671,0.16903,2961.5,2959.6,4.393]
[1767006320177,0.00506714,2960.8,2960.3,0.00506714]
[1767006321778,0.17279204,2961.5,2960.3,0.00506714]
[1767006322179,0.17279204,2961.5,2960.3,1.20806714]
[1767006322573,0.00506714,2961.2,2960.3,0.00506714]
[1767006322970,0.3377,2961.1,2960.3,0.00506714]
[1767006326783,0.3377,2961.1,2960.4,4.841]
[1767006331191,0.3377,2961.1,2958.6,10.372]
[1767006331392,0.3377,2961.1,2957.0,9.66966947]
[1767006331393,0.16909,2960.5,2958.8,4.84]
[1767006332097,0.16909,2960.5,2958.9,6.20191199]
[1767006332290,0.50675,2961.1,2959.4,0.00506714]
[1767006334599,0.16906,2961.0,2959.4,0.00506714]
[1767006337787,0.16906,2961.0,2959.5,4.839]
[1767006338894,0.16906,2961.0,2959.6,4.839]
[1767006339300,0.16906,2961.0,2959.4,0.00506714]
[1767006339503,0.16906,2961.0,2959.5,4.839]
[1767006339898,0.16906,2961.0,2959.4,0.00506714]
[1767006340200,0.16906,2961.0,2959.5,4.838]
[1767006340401,0.16906,2961.0,2959.4,0.00506714]
[1767006340603,0.16906,2960.9,2959.4,0.00506714]
[1767006340800,0.16906,2960.9,2959.5,4.838]
[1767006341003,0.16907,2960.7,2959.4,0.00506714]
[1767006341297,0.16907,2960.7,2959.5,4.838]
[1767006342197,0.16908,2960.6,2959.4,0.00506714]
[1767006342394,0.16909,2960.5,2959.4,0.00506714]
[1767006342594,0.16909,2960.4,2959.4,0.00506714]
[1767006343506,0.3377,2961.1,2958.4,0.00363042]
[1767006343507,0.16912,2959.8,2958.4,0.00363042]
[1767006344402,0.00506714,2959.4,2958.5,3.634]
[1767006344602,0.00885429,2959.4,2958.4,3.63763042]
[1767006347009,0.1691,2960.3,2958.4,3.63763042]
[1767006347909,0.1691,2960.3,2958.5,4.40918938]
[1767006348109,0.00506714,2959.7,2959.1,0.00506714]
[1767006349002,0.00506714,2959.7,2958.7,1.409]
[1767006350218,0.3378,2959.6,2958.7,1.409]
[1767006350815,0.00506714,2959.7,2958.7,1.409]
[1767006351011,0.00372845,2960.3,2958.8,4.47734921]
[1767006351312,0.00372845,2960.3,2958.9,4.836]
[1767006351715,0.00372845,2960.3,2959.0,4.45229451]
[1767006351914,0.00506714,2959.9,2959.4,0.00506714]
[1767006352118,0.00372845,2960.3,2959.4,0.00506714]
[1767006352911,2.845e-05,2960.3,2959.4,0.00506714]
[1767006353718,0.16904,2961.4,2959.5,4.45353832]
[1767006354112,0.00506714,2960.7,2959.5,4.45353832]
[1767006354312,0.16899,2962.1,2959.5,4.45353832]
[1767006354514,0.16899,2962.1,2959.9,0.16912]
[1767006354806,0.00388902,2962.1,2960.1,0.1691]
[1767006355015,0.00388902,2962.1,2960.2,4.836]
[1767006355219,0.00506714,2961.4,2960.2,9.19944894]
[1767006356020,0.00388902,2962.1,2960.2,9.19944894]
[1767006357211,0.00388902,2962.1,2960.3,4.839]
[1767006357618,0.00388902,2962.1,2960.4,4.46456626]
[1767006357809,0.00334876,2961.5,2961.0,0.00506714]
[1767006358012,0.00388902,2962.1,2961.0,0.00841002]
[1767006360420,0.71321714,2962.9,2961.2,0.16904]
[1767006360624,0.16888,2964.2,2961.3,6.7910115]
[1767006360817,0.16888,2964.1,2962.5,0.00506714]
[1767006361018,0.16889,2964.0,2962.5,4.84306714]
[1767006361317,0.16894,2963.1,2961.6,4.838]
[1767006361513,0.00264894,2964.0,2961.6,4.838]
[1767006361712,0.16895,2963.0,2961.6,4.838]
[1767006361917,0.16895,2962.9,2961.6,4.837]
[1767006362118,0.00264894,2964.0,2961.0,0.00334288]
[1767006362320,0.00506714,2962.8,2961.0,0.00334288]
[1767006362520,0.16899,2962.2,2961.0,0.00334288]
[1767006363426,0.16899,2962.2,2961.3,0.00506714]
[1767006363921,0.16899,2962.2,2961.0,0.00334288]
[1767006366027,0.16899,2962.2,2961.3,0.00506714]
[1767006371647,0.00506714,2962.8,2961.3,0.00506714]
[1767006372045,0.00506714,2962.8,2961.4,2.283]
[1767006373047,0.16895,2962.9,2961.5,4.37821715]
[1767006373447,0.16895,2962.9,2961.6,4.833]
[1767006373856,0.16895,2962.9,2961.3,0.00506714]
[1767006374041,0.00506714,2962.4,2961.4,4.833]
[1767006374242,0.00506714,2962.4,2961.5,4.833]
[1767006376950,0.16895,2962.9,2961.5,4.833]
[1767006377152,0.16891,2963.5,2961.5,4.833]
[1767006377650,0.16891,2963.5,2961.6,4.47486994]
[1767006378052,0.00506714,2962.8,2961.6,4.47486994]
[1767006378651,0.16891,2963.5,2961.6,4.47486994]
[1767006379653,0.00506714,2962.8,2961.6,4.47486994]
[1767006380053,0.16891,2963.5,2961.6,4.47486994]
[1767006380455,0.16889,2963.9,2961.7,0.16901]
[1767006380957,0.16889,2963.9,2961.8,4.47601541]
[1767006381652,0.16889,2963.9,2961.9,3.81330165]
[1767006381953,0.16889,2963.9,2962.0,4.39396501]
[1767006382360,0.00264894,2964.0,2962.0,4.39396501]
[1767006382660,0.00264894,2964.0,2962.3,0.16898]
[1767006382859,0.00264894,2964.0,2962.9,0.00506714]
[1767006384165,7.96347859,2965.6,2962.9,0.00506714]
[1767006384166,0.16883,2965.0,2962.9,0.00506714]
[1767006384357,0.16883,2964.9,2963.0,4.42060773]
[1767006385266,0.1713498,2964.9,2963.0,4.58954773]
[1767006385655,0.1713498,2964.9,2963.0,4.85544263]
[1767006386464,0.1688,2965.5,2963.4,0.16892]
[1767006386659,0.16882,2965.3,2963.5,4.83]
[1767006386858,0.16882,2965.2,2964.1,0.00506714]
[1767006387460,0.17248782,2965.2,2964.1,0.00839797]
[1767006388763,0.00366782,2965.2,2964.1,0.00839797]